[Event "Late-Titled-Tuesday-Blitz-June-18-2024"]
[Site "Chess.com"]
[Date "2024.06.18"]
[Round "5"]
[White "Tunahan_Makaraci"]
[Black "AlexeiShirov"]
[Result "0-1"]
[WhiteElo "2624"]
[BlackElo "2858"]
[TimeControl "180+1"]
[EndTime "14:58:36 PDT"]
[Termination "AlexeiShirov won on time"]

1. e4 {[%clk 0:03:00.6]} 1... e5 {[%clk 0:02:59]} 2. Nc3 {[%clk 0:02:59.4]} 2...
Nf6 {[%clk 0:02:57.4]} 3. f4 {[%clk 0:02:59.9]} 3... d5 {[%clk 0:02:56.2]} 4.
fxe5 {[%clk 0:03:00.5]} 4... Nxe4 {[%clk 0:02:55.5]} 5. Qf3 {[%clk 0:03:01.1]}
5... Nxc3 {[%clk 0:02:51.7]} 6. dxc3 {[%clk 0:03:00.9]} 6... Qh4+ {[%clk
0:02:51.1]} 7. g3 {[%clk 0:02:59.8]} 7... Qe4+ {[%clk 0:02:51.3]} 8. Qxe4 {[%clk
0:02:59.7]} 8... dxe4 {[%clk 0:02:51]} 9. Be3 {[%clk 0:02:57.7]} 9... Nc6 {[%clk
0:02:45.6]} 10. Bb5 {[%clk 0:02:57.3]} 10... Bd7 {[%clk 0:02:44.6]} 11. Bxc6
{[%clk 0:02:53.8]} 11... Bxc6 {[%clk 0:02:44.2]} 12. Ne2 {[%clk 0:02:54.1]}
12... O-O-O {[%clk 0:02:37.1]} 13. Nd4 {[%clk 0:02:47.3]} 13... Be8 {[%clk
0:02:36]} 14. O-O-O {[%clk 0:02:45.9]} 14... Rd5 {[%clk 0:02:32.4]} 15. e6
{[%clk 0:02:42.6]} 15... f6 {[%clk 0:02:29.6]} 16. c4 {[%clk 0:01:57.2]} 16...
Ra5 {[%clk 0:02:28.6]} 17. a3 {[%clk 0:01:52.8]} 17... Bc5 {[%clk 0:02:10.1]}
18. Rhe1 {[%clk 0:01:52.3]} 18... Ra6 {[%clk 0:02:05.7]} 19. Nf5 {[%clk
0:01:42]} 19... Bxe3+ {[%clk 0:02:01.9]} 20. Rxe3 {[%clk 0:01:40.1]} 20... Rxe6
{[%clk 0:02:00.9]} 21. Nxg7 {[%clk 0:01:35.5]} 21... Re5 {[%clk 0:02:00.7]} 22.
Nxe8 {[%clk 0:01:27.5]} 22... Rhxe8 {[%clk 0:01:59.3]} 23. Rf1 {[%clk 0:01:27]}
23... R8e6 {[%clk 0:01:58.2]} 24. Rf4 {[%clk 0:01:26.3]} 24... Kd7 {[%clk
0:01:54.7]} 25. Kd2 {[%clk 0:01:26.2]} 25... h5 {[%clk 0:01:48.2]} 26. Kc3
{[%clk 0:01:25.8]} 26... c5 {[%clk 0:01:47.3]} 27. h3 {[%clk 0:01:08.3]} 27...
Ke7 {[%clk 0:01:44.4]} 28. g4 {[%clk 0:01:07.6]} 28... h4 {[%clk 0:01:40.9]} 29.
b4 {[%clk 0:01:01.5]} 29... b6 {[%clk 0:01:38.8]} 30. b5 {[%clk 0:01:01.1]}
30... Kf7 {[%clk 0:01:37.5]} 31. Re1 {[%clk 0:00:53.9]} 31... e3 {[%clk
0:01:28.8]} 32. Re2 {[%clk 0:00:50.8]} 32... Kg6 {[%clk 0:01:27.1]} 33. Kd3
{[%clk 0:00:49.1]} 33... Rd6+ {[%clk 0:01:19.7]} 34. Kc3 {[%clk 0:00:49.2]}
34... Kg5 {[%clk 0:01:11.6]} 35. Rf3 {[%clk 0:00:48.6]} 35... Rde6 {[%clk
0:01:05.3]} 36. Kd3 {[%clk 0:00:48.5]} 36... Rd6+ {[%clk 0:00:53.6]} 37. Kc3
{[%clk 0:00:48.5]} 37... Rd1 {[%clk 0:00:53.1]} 38. Rexe3 {[%clk 0:00:44.2]}
38... Rxe3+ {[%clk 0:00:52.8]} 39. Rxe3 {[%clk 0:00:44.4]} 39... Rg1 {[%clk
0:00:52.8]} 40. Kd3 {[%clk 0:00:39.4]} 40... Rg3 {[%clk 0:00:48.9]} 41. Ke4
{[%clk 0:00:36.3]} 41... Rg2 {[%clk 0:00:48.4]} 42. Kd5 {[%clk 0:00:18.3]} 42...
Rxc2 {[%clk 0:00:46.8]} 43. Re4 {[%clk 0:00:17.2]} 43... Rc3 {[%clk 0:00:46.1]}
44. a4 {[%clk 0:00:12.4]} 44... Rxh3 {[%clk 0:00:43.5]} 45. a5 {[%clk
0:00:12.7]} 45... bxa5 {[%clk 0:00:32.5]} 46. Kxc5 {[%clk 0:00:12.6]} 46... Rb3
{[%clk 0:00:30.9]} 47. Re7 {[%clk 0:00:11.5]} 47... h3 {[%clk 0:00:26.5]} 48.
Rxa7 {[%clk 0:00:11.6]} 48... h2 {[%clk 0:00:23.9]} 49. Rh7 {[%clk 0:00:11]}
49... Rb2 {[%clk 0:00:23.2]} 50. Kb6 {[%clk 0:00:09.2]} 50... a4 {[%clk
0:00:22.7]} 51. c5 {[%clk 0:00:09.6]} 51... a3 {[%clk 0:00:22.4]} 52. c6 {[%clk
0:00:09.9]} 52... a2 {[%clk 0:00:20.6]} 53. c7 {[%clk 0:00:07.9]} 53... a1=Q
{[%clk 0:00:17.6]} 54. c8=Q {[%clk 0:00:07.9]} 54... Qg1+ {[%clk 0:00:17.3]} 55.
Qc5+ {[%clk 0:00:02.3]} 55... Kf4 {[%clk 0:00:16]} 56. Qxg1 {[%clk 0:00:01.5]}
56... hxg1=Q+ {[%clk 0:00:15.3]} 0-1

[Event "Late-Titled-Tuesday-Blitz-June-18-2024"]
[Site "Chess.com"]
[Date "2024.06.18"]
[Round "5"]
[White "DanylaBagrov"]
[Black "schondeln"]
[Result "1-0"]
[WhiteElo "2511"]
[BlackElo "2350"]
[TimeControl "180+1"]
[EndTime "14:58:42 PDT"]
[Termination "DanylaBagrov won on time"]

1. e4 {[%clk 0:02:57.1]} 1... d5 {[%clk 0:02:59.3]} 2. exd5 {[%clk 0:02:56.6]}
2... Qxd5 {[%clk 0:03:00.2]} 3. Nc3 {[%clk 0:02:56.8]} 3... Qa5 {[%clk
0:03:00.1]} 4. d4 {[%clk 0:02:57.2]} 4... Nf6 {[%clk 0:02:59.8]} 5. Nf3 {[%clk
0:02:57.8]} 5... Bf5 {[%clk 0:02:59.9]} 6. Ne5 {[%clk 0:02:58.1]} 6... c6 {[%clk
0:02:59.1]} 7. Bc4 {[%clk 0:02:58.2]} 7... e6 {[%clk 0:02:53]} 8. g4 {[%clk
0:02:58.7]} 8... Bg6 {[%clk 0:02:41.7]} 9. h4 {[%clk 0:02:58.6]} 9... Nbd7
{[%clk 0:02:41.9]} 10. Nxd7 {[%clk 0:02:58]} 10... Nxd7 {[%clk 0:02:42.8]} 11.
h5 {[%clk 0:02:57.7]} 11... Be4 {[%clk 0:02:42.8]} 12. O-O {[%clk 0:02:54]}
12... Bd5 {[%clk 0:02:38.8]} 13. Nxd5 {[%clk 0:02:54.5]} 13... cxd5 {[%clk
0:02:38.9]} 14. Bd3 {[%clk 0:02:55.1]} 14... Bd6 {[%clk 0:02:24.8]} 15. Bd2
{[%clk 0:02:43.4]} 15... Qb6 {[%clk 0:02:24.5]} 16. c3 {[%clk 0:02:37.5]} 16...
O-O-O {[%clk 0:02:22.8]} 17. Qf3 {[%clk 0:02:33]} 17... Rhf8 {[%clk 0:02:10.6]}
18. a4 {[%clk 0:02:30.3]} 18... Bc7 {[%clk 0:02:09.8]} 19. a5 {[%clk 0:02:15.2]}
19... Qd6 {[%clk 0:02:09.6]} 20. Qg2 {[%clk 0:02:15.8]} 20... g6 {[%clk
0:01:55]} 21. h6 {[%clk 0:02:13.3]} 21... e5 {[%clk 0:01:43.4]} 22. a6 {[%clk
0:02:08.3]} 22... e4 {[%clk 0:01:26.1]} 23. axb7+ {[%clk 0:02:07.3]} 23... Kb8
{[%clk 0:01:26.4]} 24. Bb5 {[%clk 0:01:56.4]} 24... f5 {[%clk 0:01:22.6]} 25. g5
{[%clk 0:01:40.4]} 25... f4 {[%clk 0:01:16.4]} 26. f3 {[%clk 0:01:36.1]} 26...
e3 {[%clk 0:01:08.6]} 27. Be1 {[%clk 0:01:36.5]} 27... Nb6 {[%clk 0:01:08.8]}
28. Bh4 {[%clk 0:01:22.2]} 28... Nc4 {[%clk 0:00:29]} 29. Bxc4 {[%clk
0:01:03.4]} 29... dxc4 {[%clk 0:00:29.2]} 30. Qe2 {[%clk 0:01:03.8]} 30... Qc6
{[%clk 0:00:26.7]} 31. Ra3 {[%clk 0:00:57.6]} 31... Rf5 {[%clk 0:00:16.5]} 32.
Rfa1 {[%clk 0:00:56.6]} 32... Bb6 {[%clk 0:00:16.8]} 33. Ra4 {[%clk 0:00:55.9]}
33... Kxb7 {[%clk 0:00:11.8]} 34. Rxc4 {[%clk 0:00:55.3]} 34... Qd5 {[%clk
0:00:12.1]} 35. Rb4 {[%clk 0:00:50]} 35... Rxg5+ {[%clk 0:00:11.7]} 36. Bxg5
{[%clk 0:00:46]} 36... Qxg5+ {[%clk 0:00:12.6]} 37. Kf1 {[%clk 0:00:46.4]} 37...
Qxh6 {[%clk 0:00:12.3]} 38. Qg2 {[%clk 0:00:23.3]} 38... Qh5 {[%clk 0:00:11.8]}
39. Ke2 {[%clk 0:00:21.8]} 39... Qf5 {[%clk 0:00:11.6]} 40. Rc1 {[%clk
0:00:19.6]} 40... h5 {[%clk 0:00:08.2]} 41. b3 {[%clk 0:00:09.9]} 41... g5
{[%clk 0:00:08.2]} 42. Ra4 {[%clk 0:00:09.1]} 42... Kc7 {[%clk 0:00:07.2]} 43.
Ra2 {[%clk 0:00:04.7]} 43... g4 {[%clk 0:00:07.4]} 44. Rd1 {[%clk 0:00:03]}
44... g3 {[%clk 0:00:06.5]} 45. c4 {[%clk 0:00:02.6]} 45... Rxd4 {[%clk
0:00:05.8]} 46. Rxd4 {[%clk 0:00:02.1]} 46... Bxd4 {[%clk 0:00:06.7]} 47. Qh1
{[%clk 0:00:01.5]} 47... Bc3 {[%clk 0:00:01.2]} 48. c5 {[%clk 0:00:01.5]} 48...
Bd4 {[%clk 0:00:01.3]} 49. Qd1 {[%clk 0:00:01.2]} 49... Bxc5 {[%clk 0:00:01.4]}
50. Qc1 {[%clk 0:00:01.3]} 50... Kb6 {[%clk 0:00:01]} 51. b4 {[%clk 0:00:01.8]}
51... Qd5 {[%clk 0:00:01.1]} 52. bxc5+ {[%clk 0:00:01.8]} 52... Qxc5 {[%clk
0:00:01.6]} 53. Rb2+ {[%clk 0:00:02.5]} 53... Kc6 {[%clk 0:00:01.9]} 54. Rc2
{[%clk 0:00:03.1]} 1-0

[Event "Late-Titled-Tuesday-Blitz-June-18-2024"]
[Site "Chess.com"]
[Date "2024.06.18"]
[Round "5"]
[White "SchmakAttack"]
[Black "Maus7"]
[Result "1-0"]
[WhiteElo "2828"]
[BlackElo "2611"]
[TimeControl "180+1"]
[EndTime "14:58:48 PDT"]
[Termination "SchmakAttack won on time"]

1. Nf3 {[%clk 0:02:59.9]} 1... Nf6 {[%clk 0:02:58.2]} 2. c4 {[%clk 0:02:59.6]}
2... e6 {[%clk 0:02:57.1]} 3. Nc3 {[%clk 0:02:58.3]} 3... b6 {[%clk 0:02:56.8]}
4. e4 {[%clk 0:02:57.4]} 4... Bb7 {[%clk 0:02:56.6]} 5. e5 {[%clk 0:02:57.4]}
5... Ne4 {[%clk 0:02:55.8]} 6. Bd3 {[%clk 0:02:43.8]} 6... Ng5 {[%clk
0:02:31.8]} 7. Qe2 {[%clk 0:01:48.4]} 7... Nxf3+ {[%clk 0:02:28.1]} 8. gxf3
{[%clk 0:01:49.3]} 8... Nc6 {[%clk 0:02:23.9]} 9. Be4 {[%clk 0:01:47.8]} 9...
Nd4 {[%clk 0:02:06.7]} 10. Qd3 {[%clk 0:01:45.9]} 10... Bxe4 {[%clk 0:02:03.4]}
11. Qxe4 {[%clk 0:01:41.7]} 11... c5 {[%clk 0:01:56.1]} 12. Ne2 {[%clk
0:01:41.2]} 12... Nxe2 {[%clk 0:01:39.8]} 13. Kxe2 {[%clk 0:01:42.1]} 13... d5
{[%clk 0:01:19.6]} 14. exd6 {[%clk 0:01:41.9]} 14... Bxd6 {[%clk 0:01:19.5]} 15.
Rg1 {[%clk 0:01:17.7]} 15... O-O {[%clk 0:01:11.6]} 16. d4 {[%clk 0:01:17]}
16... g6 {[%clk 0:01:11.2]} 17. dxc5 {[%clk 0:01:09.9]} 17... Bxc5 {[%clk
0:00:59.5]} 18. Rd1 {[%clk 0:00:59]} 18... Qf6 {[%clk 0:00:55.7]} 19. Rb1 {[%clk
0:00:58.9]} 19... Rad8 {[%clk 0:00:36.5]} 20. Be3 {[%clk 0:00:39.1]} 20... Rxd1
{[%clk 0:00:33.5]} 21. Kxd1 {[%clk 0:00:39.4]} 21... Rd8+ {[%clk 0:00:31.2]} 22.
Kc2 {[%clk 0:00:39.7]} 22... Bxe3 {[%clk 0:00:28.8]} 23. fxe3 {[%clk 0:00:39.6]}
23... Qg5 {[%clk 0:00:28.9]} 24. a3 {[%clk 0:00:24.7]} 24... b5 {[%clk
0:00:22.5]} 25. f4 {[%clk 0:00:17.6]} 25... Qh5 {[%clk 0:00:22.2]} 26. Kb3
{[%clk 0:00:14.4]} 26... bxc4+ {[%clk 0:00:17.8]} 27. Qxc4 {[%clk 0:00:15.3]}
27... Qxh2 {[%clk 0:00:17.8]} 28. Qc7 {[%clk 0:00:12.9]} 28... Qd2 {[%clk
0:00:17.1]} 29. Ka2 {[%clk 0:00:11.8]} 29... Qd7 {[%clk 0:00:16.1]} 30. Qc3
{[%clk 0:00:10.7]} 30... h5 {[%clk 0:00:16]} 31. Rg1 {[%clk 0:00:09.5]} 31...
Qd5+ {[%clk 0:00:15.9]} 32. Ka1 {[%clk 0:00:09.8]} 32... Qd3 {[%clk 0:00:15]}
33. Qf6 {[%clk 0:00:08.9]} 33... Rc8 {[%clk 0:00:14.1]} 34. Qe5 {[%clk
0:00:05.3]} 34... Qf5 {[%clk 0:00:13.1]} 35. Qd4 {[%clk 0:00:04.9]} 35... Qd5
{[%clk 0:00:12.9]} 36. Qxa7 {[%clk 0:00:04.3]} 36... h4 {[%clk 0:00:12.4]} 37.
Qe7 {[%clk 0:00:04.2]} 37... h3 {[%clk 0:00:11.8]} 38. Qh4 {[%clk 0:00:04.5]}
38... Qd2 {[%clk 0:00:07.7]} 39. Qxh3 {[%clk 0:00:03.6]} 39... Rc1+ {[%clk
0:00:07.6]} 40. Rxc1 {[%clk 0:00:04]} 40... Qxc1+ {[%clk 0:00:08.5]} 41. Ka2
{[%clk 0:00:04.6]} 41... Qc4+ {[%clk 0:00:08.8]} 42. Kb1 {[%clk 0:00:05.4]}
42... Qd3+ {[%clk 0:00:09]} 43. Kc1 {[%clk 0:00:05.9]} 43... Qc4+ {[%clk
0:00:07.8]} 44. Kd2 {[%clk 0:00:06.4]} 44... Qd5+ {[%clk 0:00:08]} 45. Ke1
{[%clk 0:00:06.8]} 45... Qa2 {[%clk 0:00:06.8]} 46. Qf3 {[%clk 0:00:04.4]} 46...
Qxb2 {[%clk 0:00:05.7]} 47. Qa8+ {[%clk 0:00:03.4]} 47... Kg7 {[%clk 0:00:06.1]}
48. a4 {[%clk 0:00:04.2]} 48... Qc1+ {[%clk 0:00:04.8]} 49. Ke2 {[%clk
0:00:04.3]} 49... Qc2+ {[%clk 0:00:05.1]} 50. Kf3 {[%clk 0:00:04.7]} 50... Qd1+
{[%clk 0:00:05.4]} 51. Kg3 {[%clk 0:00:04.9]} 51... Qe1+ {[%clk 0:00:05.4]} 52.
Kg2 {[%clk 0:00:04.1]} 52... Qxe3 {[%clk 0:00:04]} 53. a5 {[%clk 0:00:04.5]}
53... Qe2+ {[%clk 0:00:01.6]} 54. Kg1 {[%clk 0:00:04.8]} 54... Qe1+ {[%clk
0:00:01]} 55. Kg2 {[%clk 0:00:05.3]} 55... Qe2+ {[%clk 0:00:01.1]} 56. Kg3
{[%clk 0:00:05.2]} 1-0

[Event "Late-Titled-Tuesday-Blitz-June-18-2024"]
[Site "Chess.com"]
[Date "2024.06.18"]
[Round "5"]
[White "amintabatabaei"]
[Black "vladislavkovalev"]
[Result "1/2-1/2"]
[WhiteElo "3031"]
[BlackElo "2869"]
[TimeControl "180+1"]
[EndTime "14:58:49 PDT"]
[Termination "Game drawn by repetition"]

1. d4 {[%clk 0:02:50.1]} 1... Nf6 {[%clk 0:03:00.3]} 2. Nf3 {[%clk 0:02:51]}
2... e6 {[%clk 0:03:00.6]} 3. c3 {[%clk 0:02:51.4]} 3... d5 {[%clk 0:03:00.1]}
4. Bf4 {[%clk 0:02:52]} 4... c5 {[%clk 0:02:57.2]} 5. e3 {[%clk 0:02:52.3]} 5...
Nc6 {[%clk 0:02:57.9]} 6. Nbd2 {[%clk 0:02:52.7]} 6... cxd4 {[%clk 0:02:58.5]}
7. exd4 {[%clk 0:02:52.6]} 7... Nh5 {[%clk 0:02:59.2]} 8. Be3 {[%clk 0:02:53]}
8... Bd6 {[%clk 0:02:58.3]} 9. Bd3 {[%clk 0:02:53.7]} 9... Nf4 {[%clk
0:02:57.7]} 10. Bxf4 {[%clk 0:02:54.3]} 10... Bxf4 {[%clk 0:02:58.6]} 11. O-O
{[%clk 0:02:54.7]} 11... O-O {[%clk 0:02:55.6]} 12. Re1 {[%clk 0:02:55.4]} 12...
f6 {[%clk 0:02:40.9]} 13. g3 {[%clk 0:02:54.5]} 13... Bd6 {[%clk 0:02:39.5]} 14.
c4 {[%clk 0:02:53]} 14... b6 {[%clk 0:02:33.2]} 15. cxd5 {[%clk 0:02:48.2]}
15... exd5 {[%clk 0:02:34.1]} 16. Qb3 {[%clk 0:02:48.3]} 16... Ne7 {[%clk
0:02:30.2]} 17. Ne4 {[%clk 0:02:44.6]} 17... Bg4 {[%clk 0:01:58.8]} 18. Nh4
{[%clk 0:02:28.8]} 18... Kh8 {[%clk 0:01:25]} 19. Nxd6 {[%clk 0:02:16]} 19...
Qxd6 {[%clk 0:01:25.9]} 20. Re3 {[%clk 0:02:08.8]} 20... Nc6 {[%clk 0:01:21.7]}
21. Qc3 {[%clk 0:01:56.2]} 21... Rac8 {[%clk 0:01:20.7]} 22. Rae1 {[%clk
0:01:56.9]} 22... Nb4 {[%clk 0:01:08.1]} 23. Qd2 {[%clk 0:01:50.8]} 23... Nxd3
{[%clk 0:01:07.7]} 24. Qxd3 {[%clk 0:01:48.5]} 24... Bd7 {[%clk 0:00:43.9]} 25.
Nf5 {[%clk 0:01:32.8]} 25... Qb4 {[%clk 0:00:36.4]} 26. Nxg7 {[%clk 0:01:25.2]}
26... Kxg7 {[%clk 0:00:23.2]} 27. Re7+ {[%clk 0:01:25]} 27... Rf7 {[%clk
0:00:23.9]} 28. Rxf7+ {[%clk 0:01:25.4]} 28... Kxf7 {[%clk 0:00:24.6]} 29. Qxh7+
{[%clk 0:01:25.8]} 29... Kf8 {[%clk 0:00:24.7]} 30. Re3 {[%clk 0:01:18.5]} 30...
Re8 {[%clk 0:00:12.2]} 31. Rf3 {[%clk 0:01:05.1]} 31... Qd6 {[%clk 0:00:11.4]}
32. h4 {[%clk 0:00:52.5]} 32... Qe7 {[%clk 0:00:03]} 33. Qg6 {[%clk 0:00:45.4]}
33... Qe1+ {[%clk 0:00:03.1]} 34. Kh2 {[%clk 0:00:40.7]} 34... Re6 {[%clk
0:00:03.7]} 35. Rxf6+ {[%clk 0:00:28.9]} 35... Rxf6 {[%clk 0:00:04.6]} 36. Qxf6+
{[%clk 0:00:29.7]} 36... Ke8 {[%clk 0:00:05.2]} 37. h5 {[%clk 0:00:30.4]} 37...
Qf1 {[%clk 0:00:02.3]} 38. h6 {[%clk 0:00:28.5]} 38... Qh3+ {[%clk 0:00:02.6]}
39. Kg1 {[%clk 0:00:29.3]} 39... Bg4 {[%clk 0:00:01.7]} 40. Qh8+ {[%clk
0:00:20.7]} 40... Kd7 {[%clk 0:00:02.1]} 41. Qg7+ {[%clk 0:00:21.2]} 41... Ke6
{[%clk 0:00:01.3]} 42. Qe5+ {[%clk 0:00:14.8]} 42... Kf7 {[%clk 0:00:01.3]} 43.
Qg7+ {[%clk 0:00:12.9]} 43... Ke6 {[%clk 0:00:01.8]} 44. Qg6+ {[%clk 0:00:13.6]}
44... Ke7 {[%clk 0:00:01.5]} 45. Qg5+ {[%clk 0:00:13.3]} 45... Ke6 {[%clk
0:00:01.7]} 46. h7 {[%clk 0:00:13.5]} 46... Bf3 {[%clk 0:00:01.8]} 47. Qe3+
{[%clk 0:00:14.1]} 47... Be4 {[%clk 0:00:01.7]} 48. f3 {[%clk 0:00:07.3]} 48...
Qxg3+ {[%clk 0:00:02.3]} 49. Kf1 {[%clk 0:00:07.8]} 49... Qh3+ {[%clk
0:00:01.6]} 50. Ke2 {[%clk 0:00:07.7]} 50... Qh2+ {[%clk 0:00:01.2]} 51. Kd1
{[%clk 0:00:05.1]} 51... Qh1+ {[%clk 0:00:01.1]} 52. Kd2 {[%clk 0:00:04.9]}
52... Qh2+ {[%clk 0:00:01.7]} 53. Kc3 {[%clk 0:00:02.2]} 53... Qc2+ {[%clk
0:00:01.7]} 54. Kb4 {[%clk 0:00:03]} 54... Qc4+ {[%clk 0:00:02]} 55. Ka3 {[%clk
0:00:03]} 55... Qa6+ {[%clk 0:00:02.4]} 56. Kb3 {[%clk 0:00:03.4]} 56... Qc4+
{[%clk 0:00:02.7]} 57. Ka3 {[%clk 0:00:04.3]} 57... Qa6+ {[%clk 0:00:03]} 58.
Kb4 {[%clk 0:00:05.1]} 58... Qc4+ {[%clk 0:00:01.6]} 59. Ka3 {[%clk 0:00:05.6]}
1/2-1/2

[Event "Late-Titled-Tuesday-Blitz-June-18-2024"]
[Site "Chess.com"]
[Date "2024.06.18"]
[Round "5"]
[White "Sanyura"]
[Black "Statham_01"]
[Result "0-1"]
[WhiteElo "2528"]
[BlackElo "2710"]
[TimeControl "180+1"]
[EndTime "14:58:49 PDT"]
[Termination "Statham_01 won by checkmate"]

1. e4 {[%clk 0:02:28.5]} 1... c5 {[%clk 0:02:59.4]} 2. Nf3 {[%clk 0:02:26.5]}
2... d6 {[%clk 0:02:59.3]} 3. d4 {[%clk 0:02:26.7]} 3... cxd4 {[%clk 0:03:00.2]}
4. Nxd4 {[%clk 0:02:27.3]} 4... Nf6 {[%clk 0:03:00.9]} 5. f3 {[%clk 0:02:25]}
5... g6 {[%clk 0:03:01.1]} 6. c4 {[%clk 0:02:24.8]} 6... Bg7 {[%clk 0:03:01.4]}
7. Nc3 {[%clk 0:02:25.4]} 7... O-O {[%clk 0:03:01.9]} 8. Be3 {[%clk 0:02:26]}
8... Nc6 {[%clk 0:03:02.2]} 9. Be2 {[%clk 0:02:26.5]} 9... Be6 {[%clk
0:02:56.1]} 10. O-O {[%clk 0:02:24.3]} 10... Nxd4 {[%clk 0:02:54.4]} 11. Bxd4
{[%clk 0:02:23.6]} 11... Nd7 {[%clk 0:02:53.9]} 12. Bxg7 {[%clk 0:02:15.7]}
12... Kxg7 {[%clk 0:02:54.8]} 13. b3 {[%clk 0:02:16.2]} 13... Rc8 {[%clk
0:02:52.3]} 14. f4 {[%clk 0:02:15.9]} 14... Qb6+ {[%clk 0:02:46.1]} 15. Kh1
{[%clk 0:02:15.1]} 15... f6 {[%clk 0:02:43.9]} 16. f5 {[%clk 0:02:10.6]} 16...
Bf7 {[%clk 0:02:40]} 17. fxg6 {[%clk 0:02:08]} 17... hxg6 {[%clk 0:02:40.9]} 18.
Bg4 {[%clk 0:02:08.5]} 18... e6 {[%clk 0:02:27.7]} 19. Qf3 {[%clk 0:01:33.3]}
19... Qd4 {[%clk 0:02:25]} 20. Rad1 {[%clk 0:01:31.3]} 20... Qe5 {[%clk
0:02:23.2]} 21. Qd3 {[%clk 0:01:17.3]} 21... Nc5 {[%clk 0:02:02.3]} 22. Qe3
{[%clk 0:00:31.5]} 22... Rh8 {[%clk 0:01:59.8]} 23. h3 {[%clk 0:00:30.8]} 23...
f5 {[%clk 0:01:55.5]} 24. Bf3 {[%clk 0:00:15.9]} 24... Rh4 {[%clk 0:01:49.1]}
25. Ne2 {[%clk 0:00:11.6]} 25... Rch8 {[%clk 0:01:46.3]} 26. Kg1 {[%clk
0:00:10.6]} 26... Nxe4 {[%clk 0:01:42.3]} 27. Qd4 {[%clk 0:00:07.5]} 27... Qxd4+
{[%clk 0:01:30.4]} 28. Rxd4 {[%clk 0:00:06.4]} 28... e5 {[%clk 0:01:29.1]} 29.
Rdd1 {[%clk 0:00:05.6]} 29... b6 {[%clk 0:01:10.4]} 30. Bxe4 {[%clk 0:00:05.8]}
30... Rxe4 {[%clk 0:01:10.9]} 31. Ng3 {[%clk 0:00:03.8]} 31... Re3 {[%clk
0:01:09.3]} 32. Kf2 {[%clk 0:00:03.9]} 32... f4 {[%clk 0:01:09.5]} 33. Ne2
{[%clk 0:00:04.1]} 33... g5 {[%clk 0:00:45.8]} 34. Rxd6 {[%clk 0:00:03.7]} 34...
Bh5 {[%clk 0:00:46.5]} 35. Ng1 {[%clk 0:00:03.8]} 35... Rf8 {[%clk 0:00:40.4]}
36. Re1 {[%clk 0:00:03.9]} 36... Rxe1 {[%clk 0:00:34.5]} 37. Kxe1 {[%clk
0:00:04.8]} 37... e4 {[%clk 0:00:34.7]} 38. Rd7+ {[%clk 0:00:03.3]} 38... Kg8
{[%clk 0:00:33.6]} 39. Re7 {[%clk 0:00:03.4]} 39... e3 {[%clk 0:00:19.5]} 40.
Re5 {[%clk 0:00:03.2]} 40... Kh7 {[%clk 0:00:15.1]} 41. Rxg5 {[%clk 0:00:03.5]}
41... Kh6 {[%clk 0:00:15.8]} 42. Rd5 {[%clk 0:00:01.9]} 42... Rg8 {[%clk
0:00:15.9]} 43. Ne2 {[%clk 0:00:01.7]} 43... Bxe2 {[%clk 0:00:10.6]} 44. Kxe2
{[%clk 0:00:02.6]} 44... Rxg2+ {[%clk 0:00:11.3]} 45. Kf1 {[%clk 0:00:01.8]}
45... Rf2+ {[%clk 0:00:11.3]} 46. Ke1 {[%clk 0:00:01.8]} 46... Rxa2 {[%clk
0:00:10.4]} 47. Rf5 {[%clk 0:00:02.4]} 47... Rf2 {[%clk 0:00:08]} 48. b4 {[%clk
0:00:02.6]} 48... Kg6 {[%clk 0:00:08.4]} 49. Rf8 {[%clk 0:00:02.8]} 49... Kg5
{[%clk 0:00:08.4]} 50. c5 {[%clk 0:00:02.8]} 50... bxc5 {[%clk 0:00:09]} 51.
bxc5 {[%clk 0:00:03.7]} 51... Rc2 {[%clk 0:00:09.6]} 52. Rg8+ {[%clk 0:00:02.2]}
52... Kf5 {[%clk 0:00:09.8]} 53. Rh8 {[%clk 0:00:01.1]} 53... f3 {[%clk
0:00:09.2]} 54. Rf8+ {[%clk 0:00:01]} 54... Ke4 {[%clk 0:00:09.7]} 55. Re8+
{[%clk 0:00:01.5]} 55... Kd3 {[%clk 0:00:10.1]} 56. Rd8+ {[%clk 0:00:02]} 56...
Kc4 {[%clk 0:00:10.7]} 57. Rf8 {[%clk 0:00:02.4]} 57... Rc1# {[%clk 0:00:10.8]}
0-1